fUSD/lending_fUSD_20251122
["ID","MTS","AMOUNT","RATE_DAILY","PERIOD"]
[394625648,1763795446998,-858.11,0.00016493,2]
[394625649,1763795447007,-500.0,0.00016493,2]
[394625650,1763795447016,-500.0,0.00016493,2]
[394625651,1763795447025,-500.0,0.00016493,2]
[394625652,1763795447035,-642.54,0.00016493,2]
[394625653,1763795447043,-500.0,0.00016493,2]
[394625654,1763795447053,-500.0,0.00016493,2]
[394625655,1763795447062,-500.0,0.00016493,2]
[394625656,1763795447071,-500.0,0.00016493,2]
[394625657,1763795447080,-1351.88,0.00016493,2]
[394625658,1763795447092,-583.12,0.00016493,2]
[394625659,1763795447101,-500.0,0.00016493,2]
[394625660,1763795447110,-500.0,0.00016493,2]
[394625661,1763795447120,-500.0,0.00016493,2]
[394625662,1763795447129,-500.0,0.00016493,2]
[394625663,1763795447213,-500.0,0.00016493,2]
[394625664,1763795447222,-500.0,0.00016493,2]
[394625665,1763795447231,-636.97,0.00016493,2]
[394625666,1763795447240,-500.0,0.00016493,2]
[394625667,1763795447250,-1333.56,0.00016493,2]
[394625668,1763795447259,-1003.71,0.00016493,2]
[394625669,1763795447268,-500.0,0.00016493,2]
[394625670,1763795447277,-500.0,0.00016493,2]
[394625671,1763795447286,-859.95,0.00016493,2]
[394625672,1763795447295,-639.99,0.00016493,2]
[394625673,1763795447304,-500.0,0.00016493,2]
[394625674,1763795447313,-300.0,0.00016493,2]
[394625675,1763795447321,-500.0,0.00016493,2]
[394625676,1763795447331,-500.0,0.00016493,2]
[394625677,1763795447340,-1231.68,0.00016493,2]
[394625678,1763795447349,-645.03199761,0.00016493,2]
[394625679,1763795447358,-500.0,0.00016493,2]
[394625680,1763795447367,-1105.87,0.00016493,2]
[394625681,1763795447376,-500.0,0.00016493,2]
[394625682,1763795447385,-500.0,0.00016493,2]
[394625683,1763795447394,-500.0,0.00016493,2]
[394625684,1763795447403,-500.0,0.00016493,2]
[394625685,1763795447412,-500.0,0.00016493,2]
[394625686,1763795447421,-500.0,0.00016493,2]
[394625687,1763795447429,-500.0,0.00016493,2]
[394625688,1763795447439,-1271.87,0.00016493,2]
[394625689,1763795447449,-864.09,0.00016493,2]
[394625690,1763795447457,-617.59427257,0.00016493,2]
[394625691,1763795447468,-500.0,0.00016493,2]
[394625692,1763795447479,-500.0,0.00016493,2]
[394625693,1763795447491,-668.75,0.00016493,2]
[394625694,1763795447500,-500.0,0.00016493,2]
[394625695,1763795447510,-500.0,0.00016493,2]
[394625696,1763795447519,-545.08686085,0.00016493,2]
[394625697,1763795447530,-1128.26,0.00016493,2]
[394625698,1763795447539,-500.0,0.00016493,2]
[394625699,1763795447549,-500.0,0.00016493,2]
[394625700,1763795447558,-500.0,0.00016493,2]
[394625701,1763795447568,-300.0,0.00016493,2]
[394625702,1763795447579,-500.0,0.00016493,2]
[394625703,1763795447589,-1020.48,0.00016493,2]
[394625704,1763795447599,-500.0,0.00016493,2]
[394625705,1763795447608,-500.0,0.00016494,2]
[394625706,1763795447618,-500.0,0.00016494,2]
[394625707,1763795447627,-500.0,0.00016494,2]
[394625708,1763795447637,-500.0,0.00016494,2]
[394625709,1763795447646,-470.64609812,0.00016494,2]
[394625710,1763795447655,-500.0,0.00016494,2]
[394625711,1763795447664,-500.0,0.00016494,2]
[394625712,1763795447673,-500.0,0.00016494,2]
[394625713,1763795447683,-500.0,0.00016494,2]
[394625714,1763795447692,-500.0,0.00016494,2]
[394625715,1763795447702,-502.27744855,0.00016494,2]
[394625716,1763795447712,-1324.57,0.00016494,2]
[394625717,1763795447722,-694.0,0.00016494,2]
[394625718,1763795447733,-500.0,0.00016494,2]
[394625719,1763795447742,-500.0,0.00016494,2]
[394625720,1763795447751,-500.0,0.00016494,2]
[394625721,1763795447762,-500.0,0.00016494,2]
[394625722,1763795447772,-500.0,0.00016494,2]
[394625723,1763795447781,-500.0,0.00016494,2]
[394625724,1763795447790,-861.45,0.00016494,2]
[394625725,1763795447798,-778.01,0.00016494,2]
[394625726,1763795447808,-500.0,0.00016494,2]
[394625727,1763795447818,-500.0,0.00016494,2]
[394625728,1763795447829,-500.0,0.00016494,2]
[394625729,1763795447838,-500.0,0.00016494,2]
[394625730,1763795447848,-500.0,0.00016494,2]
[394625731,1763795447857,-500.0,0.00016494,2]
[394625732,1763795447867,-855.53,0.00016494,2]
[394625733,1763795447876,-810.8,0.00016494,2]
[394625734,1763795447885,-535.7,0.00016494,2]
[394625735,1763795447894,-799.75,0.00016494,2]
[394625736,1763795447904,-608.61895991,0.00016494,2]
[394625737,1763795447914,-500.0,0.00016494,2]
[394625738,1763795447923,-532.93,0.00016494,2]
[394625739,1763795447933,-500.0,0.00016494,2]
[394625740,1763795447942,-500.0,0.00016494,2]
[394625741,1763795447951,-500.0,0.00016494,2]
[394625742,1763795447961,-500.0,0.00016494,2]
[394625743,1763795447970,-500.0,0.00016494,2]
[394625744,1763795447980,-500.0,0.00016494,2]
[394625745,1763795447990,-500.0,0.00016494,2]
[394625746,1763795447999,-500.0,0.00016494,2]
[394625747,1763795448009,-853.67,0.00016494,2]
[394625748,1763795448018,-500.0,0.00016494,2]
[394625749,1763795448027,-164.454298,0.00016494,2]
[394625750,1763795448036,-500.0,0.00016494,2]
[394625751,1763795448045,-500.0,0.00016494,2]
[394625752,1763795448054,-199.98519878,0.00016494,2]
[394625753,1763795448064,-500.0,0.00016494,2]
[394625754,1763795448073,-500.0,0.00016494,2]
[394625755,1763795448082,-237.11250458,0.00016494,2]
[394625756,1763795448096,-500.0,0.00016494,2]
[394625757,1763795448104,-643.11861821,0.00016494,2]
[394625758,1763795448113,-483.6186739,0.00016494,2]
[394625759,1763795448122,-500.0,0.00016494,2]
[394625760,1763795448133,-478.49091463,0.00016494,2]
[394625761,1763795448141,-500.0,0.00016494,2]
[394625762,1763795448150,-500.0,0.00016494,2]
[394625763,1763795448159,-164.84909231,0.00016494,2]
[394625764,1763795448170,-971.94,0.00016494,2]
[394625765,1763795448181,-500.0,0.00016494,2]
[394625766,1763795448190,-500.0,0.00016494,2]
[394625767,1763795448199,-500.0,0.00016494,2]
[394625768,1763795448209,-500.0,0.00016494,2]
[394625769,1763795448218,-821.53,0.00016494,2]
[394625770,1763795448227,-818.36,0.00016494,2]
[394625771,1763795448236,-1074.73,0.00016494,2]
[394625772,1763795448246,-500.0,0.00016494,2]
[394625773,1763795448255,-500.0,0.00016494,2]
[394625774,1763795448264,-500.0,0.00016494,2]
[394625775,1763795448274,-419.84109468,0.00016494,2]
[394625776,1763795448283,-500.0,0.00016494,2]
[394625777,1763795448292,-500.0,0.00016494,2]
[394625778,1763795448302,-1035.77,0.00016494,2]
[394625779,1763795448311,-441.39747822,0.00016494,2]
[394625780,1763795448320,-500.0,0.00016494,2]
[394625781,1763795448330,-500.0,0.00016494,2]
[394625782,1763795448339,-1218.66,0.00016494,2]
[394625783,1763795448349,-500.0,0.00016494,2]
[394625784,1763795448357,-616.89,0.00016494,2]
[394625785,1763795448367,-500.0,0.00016494,2]
[394625786,1763795448376,-666.17,0.00016494,2]
[394625787,1763795448385,-500.0,0.00016494,2]
[394625788,1763795448394,-507.8936805,0.00016494,2]
[394625789,1763795448403,-1022.43,0.00016494,2]
[394625790,1763795448412,-500.0,0.00016494,2]
[394625791,1763795448422,-1113.68,0.00016494,2]
[394625792,1763795448432,-285.07504811,0.00016494,2]
[394625793,1763795448442,-500.0,0.00016494,2]
[394625794,1763795448451,-500.0,0.00016494,2]
[394625795,1763795448461,-964.69,0.00016494,2]
[394625796,1763795448470,-500.0,0.00016494,2]
[394625797,1763795448479,-521.51472538,0.00016494,2]
[394625798,1763795448489,-500.0,0.00016494,2]
[394625799,1763795448498,-442.56758967,0.00016494,2]
[394625800,1763795448508,-500.0,0.00016494,2]
[394625801,1763795448517,-500.0,0.00016494,2]
[394625802,1763795448529,-500.0,0.00016494,2]
[394625803,1763795448539,-500.0,0.00016494,2]
[394625804,1763795448549,-209.0560923,0.00016494,2]
[394625805,1763795448558,-500.0,0.00016494,2]
[394625806,1763795448568,-500.0,0.00016494,2]
[394625807,1763795448578,-501.34384363,0.00016494,2]
[394625808,1763795448588,-500.0,0.00016494,2]
[394625809,1763795448598,-447.88137676,0.00016494,2]
[394625810,1763795448608,-500.0,0.00016494,2]
[394625811,1763795448618,-892.46,0.00016494,2]
[394625812,1763795448627,-412.4068703,0.00016494,2]
[394625813,1763795448636,-548.41227566,0.00016494,2]
[394625814,1763795448645,-500.0,0.00016494,2]
[394625815,1763795448654,-500.0,0.00016494,2]
[394625816,1763795448663,-469.7840213,0.00016494,2]
[394625817,1763795448675,-528.27,0.00016494,2]
[394625818,1763795448685,-877.96,0.00016494,2]
[394625819,1763795448695,-416.98303149,0.00016494,2]
[394625820,1763795448703,-774.78,0.00016494,2]
[394625821,1763795448713,-500.0,0.00016494,2]
[394625822,1763795448722,-500.0,0.00016494,2]
[394625823,1763795448731,-500.0,0.00016494,2]
[394625824,1763795448740,-500.0,0.00016494,2]
[394625825,1763795448749,-500.0,0.00016494,2]
[394625826,1763795448758,-500.0,0.00016494,2]
[394625827,1763795448767,-500.0,0.00016494,2]
[394625828,1763795448776,-500.0,0.00016494,2]
[394625829,1763795448785,-500.0,0.00016494,2]
[394625830,1763795448794,-407.69916195,0.00016494,2]
[394625831,1763795448803,-500.0,0.00016494,2]
[394625832,1763795448813,-500.0,0.00016494,2]
[394625833,1763795448822,-500.0,0.00016494,2]
[394625834,1763795448831,-519.967806,0.00016494,2]
[394625835,1763795448841,-914.75,0.00016494,2]
[394625836,1763795448851,-500.0,0.00016494,2]
[394625837,1763795448861,-801.13,0.00016494,2]
[394625838,1763795448871,-500.0,0.00016494,2]
[394625839,1763795448881,-500.0,0.00016494,2]
[394625840,1763795448892,-500.0,0.00016494,2]
[394625841,1763795448902,-500.0,0.00016494,2]
[394625842,1763795448912,-500.0,0.00016494,2]
[394625843,1763795448921,-500.0,0.00016494,2]
[394625844,1763795448932,-500.0,0.00016494,2]
[394625845,1763795448942,-500.0,0.00016494,2]
[394625846,1763795448952,-306.06982656,0.00016494,2]
[394625847,1763795448961,-500.0,0.00016494,2]
[394625848,1763795448970,-509.25918553,0.00016494,2]
[394625849,1763795448979,-500.0,0.00016494,2]
[394625850,1763795448988,-500.0,0.00016494,2]
[394625851,1763795448997,-500.0,0.00016494,2]
[394625852,1763795449007,-500.0,0.00016494,2]
[394625853,1763795449016,-270.99812939,0.00016494,2]
[394625854,1763795449026,-500.0,0.00016494,2]
[394625855,1763795449035,-500.0,0.00016494,2]
[394625856,1763795449043,-500.0,0.00016494,2]
[394625857,1763795449052,-507.79,0.00016494,2]
[394625858,1763795449061,-1243.23,0.00016494,2]
[394625859,1763795449070,-680.08,0.00016494,2]
[394625860,1763795449079,-500.0,0.00016494,2]
[394625861,1763795449092,-500.0,0.00016494,2]
[394625862,1763795449100,-917.45,0.00016494,2]
[394625863,1763795449109,-500.0,0.00016494,2]
[394625864,1763795449117,-500.0,0.00016494,2]
[394625865,1763795449126,-431.84967213,0.00016494,2]
[394625866,1763795449138,-500.0,0.00016494,2]
[394625867,1763795449147,-500.0,0.00016494,2]
[394625868,1763795449156,-932.46,0.00016494,2]
[394625869,1763795449166,-500.0,0.00016494,2]
[394625870,1763795449177,-500.0,0.00016494,2]
[394625871,1763795449186,-500.0,0.00016494,2]
[394625872,1763795449195,-500.0,0.00016494,2]
[394625873,1763795449204,-663.27,0.00016494,2]
[394625874,1763795449213,-500.0,0.00016494,2]
[394625875,1763795449223,-500.0,0.00016494,2]
[394625876,1763795449232,-500.0,0.00016494,2]
[394625877,1763795449241,-325.05323924,0.00016494,2]
[394625878,1763795449250,-500.0,0.00016494,2]
[394625879,1763795449259,-500.0,0.00016494,2]
[394625880,1763795449268,-500.0,0.00016494,2]
[394625881,1763795449278,-500.0,0.00016494,2]
[394625882,1763795449287,-826.19,0.00016494,2]
[394625883,1763795449297,-500.0,0.00016494,2]
[394625884,1763795449306,-500.0,0.00016494,2]
[394625885,1763795449316,-500.0,0.00016494,2]
[394625886,1763795449326,-897.85,0.00016494,2]
[394625887,1763795449336,-500.0,0.00016494,2]
[394625888,1763795449345,-500.0,0.00016494,2]
[394625889,1763795449354,-1469.01,0.00016494,2]
[394625890,1763795449363,-500.0,0.00016494,2]
[394625891,1763795449372,-500.0,0.00016494,2]
[394625892,1763795449381,-500.0,0.00016494,2]
[394625893,1763795449390,-500.0,0.00016494,2]
[394625894,1763795449399,-844.01,0.00016494,2]
[394625895,1763795449408,-500.0,0.00016494,2]
[394625896,1763795449417,-500.0,0.00016494,2]
[394625897,1763795449426,-500.0,0.00016494,2]
[394625898,1763795449436,-500.0,0.00016494,2]
[394625899,1763795449445,-500.0,0.00016494,2]
[394625900,1763795449455,-1024.25,0.00016494,2]
[394625901,1763795449465,-500.0,0.00016494,2]
[394625902,1763795449474,-500.0,0.00016494,2]
[394625903,1763795449483,-500.0,0.00016494,2]
[394625904,1763795449492,-500.0,0.00016494,2]
[394625905,1763795449502,-524.44,0.00016494,2]
[394625906,1763795449511,-500.0,0.00016494,2]
[394625907,1763795449520,-820.43,0.00016494,2]
[394625908,1763795449531,-500.0,0.00016494,2]
[394625909,1763795449542,-541.59,0.00016494,2]
[394625910,1763795449552,-1080.81,0.00016494,2]
[394625911,1763795449564,-500.0,0.00016494,2]
[394625912,1763795449574,-500.0,0.00016494,2]
[394625913,1763795449584,-500.0,0.00016494,2]
[394625914,1763795449595,-1126.7,0.00016494,2]
[394625915,1763795449604,-500.0,0.00016494,2]
[394625916,1763795449615,-500.0,0.00016494,2]
[394625917,1763795449626,-662.45,0.00016494,2]
[394625918,1763795449635,-755.62,0.00016494,2]
[394625919,1763795449645,-500.0,0.00016494,2]
[394625920,1763795449655,-500.0,0.00016494,2]
[394625921,1763795449666,-716.72,0.00016494,2]
[394625922,1763795449676,-948.49,0.00016494,2]
[394625923,1763795449685,-641.33,0.00016494,2]
[394625924,1763795449695,-500.0,0.00016494,2]
[394625925,1763795449703,-500.0,0.00016494,2]
[394625926,1763795449712,-500.0,0.00016494,2]
[394625927,1763795449721,-827.46,0.00016494,2]
[394625928,1763795449731,-500.0,0.00016494,2]
[394625929,1763795449741,-500.0,0.00016494,2]
[394625930,1763795449751,-500.0,0.00016494,2]
[394625931,1763795449760,-500.0,0.00016494,2]
[394625932,1763795449769,-500.0,0.00016494,2]
[394625933,1763795449780,-500.0,0.00016494,2]
[394625934,1763795449790,-500.0,0.00016494,2]
[394625935,1763795449799,-500.0,0.00016494,2]
[394625936,1763795449809,-500.0,0.00016494,2]
[394625937,1763795449819,-1100.16,0.00016494,2]
[394625938,1763795449828,-589.19074749,0.00016494,2]
[394625939,1763795449837,-500.0,0.00016494,2]
[394625940,1763795449846,-564.91338538,0.00016494,2]
[394625941,1763795449855,-500.0,0.00016494,2]
[394625942,1763795449864,-500.0,0.00016494,2]
[394625943,1763795449873,-500.0,0.00016494,2]
[394625944,1763795449882,-500.0,0.00016494,2]
[394625945,1763795449893,-578.37,0.00016494,2]
[394625946,1763795449903,-722.23,0.00016494,2]
[394625947,1763795449912,-507.11,0.00016494,2]
[394625948,1763795449921,-224.76853854,0.00016494,2]
[394625949,1763795449931,-1162.4,0.00016494,2]
[394625950,1763795449940,-776.72,0.00016494,2]
[394625951,1763795449950,-500.0,0.00016494,2]
[394625952,1763795449959,-500.0,0.00016494,2]
[394625953,1763795449968,-1201.47,0.00016494,2]
[394625954,1763795449978,-500.0,0.00016494,2]
[394625955,1763795449987,-500.0,0.00016494,2]
[394625956,1763795449997,-500.0,0.00016494,2]
[394625957,1763795450006,-500.0,0.00016494,2]
[394625958,1763795450015,-500.0,0.00016494,2]
[394625959,1763795450025,-558.88,0.00016494,2]
[394625960,1763795450035,-1990.9,0.00016494,2]
[394625961,1763795450045,-923.81,0.00016494,2]
[394625962,1763795450054,-893.8,0.00016494,2]
[394625963,1763795450066,-500.0,0.00016494,2]
[394625964,1763795450075,-500.0,0.00016494,2]
[394625965,1763795450086,-500.0,0.00016494,2]
[394625966,1763795450100,-500.0,0.00016494,2]
[394625967,1763795450109,-1021.95,0.00016494,2]
[394625968,1763795450119,-500.0,0.00016494,2]
[394625969,1763795450129,-557.8,0.00016494,2]
[394625970,1763795450139,-1011.18,0.00016494,2]
[394625971,1763795450149,-500.0,0.00016494,2]
[394625972,1763795450158,-683.82,0.00016494,2]
[394625973,1763795450169,-500.0,0.00016494,2]
[394625974,1763795450178,-1050.83,0.00016494,2]
[394625975,1763795450187,-500.0,0.00016494,2]
[394625976,1763795450197,-635.13,0.00016494,2]
[394625977,1763795450206,-500.0,0.00016494,2]
[394625978,1763795450216,-500.0,0.00016494,2]
[394625979,1763795450225,-529.46,0.00016494,2]
[394625980,1763795450234,-500.0,0.00016494,2]
[394625981,1763795450243,-1016.32,0.00016494,2]
[394625982,1763795450253,-502.96,0.00016494,2]
[394625983,1763795450262,-333.81416125,0.00016494,2]
[394625984,1763795450271,-511.7958155,0.00016494,2]
[394625985,1763795450280,-500.0,0.00016494,2]
[394625986,1763795450289,-500.0,0.00016494,2]
[394625987,1763795450298,-634.82026114,0.00016494,2]
[394625988,1763795450308,-500.0,0.00016494,2]
[394625989,1763795450317,-500.0,0.00016494,2]
[394625990,1763795450326,-542.19,0.00016494,2]
[394625991,1763795450335,-500.0,0.00016494,2]
[394625992,1763795450344,-1206.81,0.00016494,2]
[394625993,1763795450354,-961.0,0.00016494,2]
[394625994,1763795450363,-151.0,0.00016494,2]
[394625995,1763795450372,-151.0,0.00016494,2]
[394625996,1763795450382,-500.0,0.00016494,2]
[394625997,1763795450391,-500.0,0.00016494,2]
[394625998,1763795450400,-1134.04,0.00016494,2]
[394625999,1763795450410,-500.0,0.00016494,2]
[394626000,1763795450419,-500.0,0.00016494,2]
[394626001,1763795450428,-625.8,0.00016494,2]
[394626002,1763795450438,-1296.91,0.00016494,2]
[394626003,1763795450448,-622.87,0.00016494,2]
[394626004,1763795450457,-1505.41,0.00016494,2]
[394626005,1763795450466,-500.0,0.00016494,2]
[394626006,1763795450476,-500.0,0.00016494,2]
[394626007,1763795450485,-500.0,0.00016494,2]
[394626008,1763795450495,-500.0,0.00016494,2]
[394626009,1763795450504,-871.39,0.00016494,2]
[394626010,1763795450513,-500.0,0.00016494,2]
[394626011,1763795450522,-500.0,0.00016494,2]
[394626012,1763795450532,-500.0,0.00016494,2]
[394626013,1763795450541,-1422.18,0.00016494,2]
[394626014,1763795450550,-150.0,0.00016554,2]
[394626015,1763795450560,-150.0,0.00016554,2]
[394626016,1763795450570,-2239.93976292,0.00016584,2]
[394626017,1763795450580,-500.0,0.00016593,2]
[394626018,1763795450589,-500.0,0.00016594,2]
[394626019,1763795450598,-500.0,0.00016594,2]
[394626020,1763795450608,-500.0,0.00016594,3]
[394626021,1763795450618,-500.0,0.00016594,4]
[394626022,1763795450627,-500.0,0.00016595,2]
[394626023,1763795450637,-563.26,0.00016595,2]
[394626024,1763795450647,-500.0,0.00016595,2]
[394626025,1763795450656,-500.0,0.00016595,2]
[394626026,1763795450666,-773.87,0.00016595,2]
[394626027,1763795450675,-500.0,0.00016595,2]
[394626028,1763795450685,-2000.0,0.00016595,2]
[394626029,1763795450695,-2000.0,0.00016595,2]
[394626030,1763795450705,-2000.0,0.00016595,2]
[394626031,1763795450715,-500.0,0.00016595,2]
[394626032,1763795450725,-2000.0,0.00016595,2]
[394626033,1763795450734,-1362.523,0.00016595,2]
[394626034,1763795450744,-506.94,0.00016595,2]
[394626035,1763795450754,-500.0,0.00016595,2]
[394626036,1763795450764,-828.42,0.00016595,2]
[394626037,1763795450774,-500.0,0.00016595,2]
[394626038,1763795450783,-500.0,0.00016595,2]
[394626039,1763795450793,-677.92,0.00016595,2]
[394626040,1763795450803,-500.0,0.00016595,2]
[394626041,1763795450813,-999.38,0.00016595,2]
[394626042,1763795450823,-510.344407,0.00016595,2]
[394626043,1763795450832,-783.04,0.00016595,2]
[394626044,1763795450841,-500.0,0.00016595,2]
[394626045,1763795450850,-977.89,0.00016595,2]
[394626046,1763795450860,-426.55783441,0.00016595,2]
[394626047,1763795450869,-554.46,0.00016595,2]
[394626048,1763795450878,-500.0,0.00016595,2]
[394626049,1763795450888,-500.0,0.00016595,2]
[394626050,1763795450897,-500.0,0.00016595,2]
[394626051,1763795450906,-500.0,0.00016595,2]
[394626052,1763795450915,-500.0,0.00016595,2]
[394626053,1763795450925,-1000.0,0.00016596,2]
[394626054,1763795450934,-612.367,0.00016596,2]
[394626055,1763795450944,-1000.0,0.00016596,2]
[394626056,1763795450954,-1000.0,0.00016596,2]
[394626057,1763795450963,-1000.0,0.00016596,2]
[394626058,1763795450972,-437.657,0.00016596,2]
[394626059,1763795450981,-1931.33294916,0.00016598,2]
[394626060,1763795450991,-150.0,0.00016615,2]
[394626061,1763795451001,-150.0,0.00016615,2]
[394626062,1763795451010,-150.0,0.00016615,2]
[394626063,1763795451020,-150.0,0.00016615,2]
[394626064,1763795451029,-413.45244426,0.00016619,2]
[394626065,1763795451038,-292.39701435,0.00016659,2]
[394626066,1763795451048,-300.0,0.00016659,2]
[394626067,1763795451057,-300.0,0.00016659,2]
[394626068,1763795451067,-150.04453283,0.00016659,2]
[394626069,1763795451076,-193.0,0.00016659,2]
[394626070,1763795451086,-2500.0,0.00016659,2]
[394626071,1763795451098,-300.0,0.00016659,2]
[394626072,1763795451108,-300.0,0.00016659,2]
[394626073,1763795451117,-300.0,0.00016659,2]
[394626074,1763795451127,-193.0,0.00016659,2]
[394626075,1763795451139,-150.10776003,0.00016659,2]
[394626076,1763795451148,-300.0,0.00016659,2]
[394626077,1763795451160,-250.0,0.00016659,2]
[394626078,1763795451172,-300.0,0.00016659,2]
[394626079,1763795451182,-250.0,0.00016659,2]
[394626080,1763795451192,-300.0,0.00016711,2]
[394626081,1763795451202,-300.0,0.00016711,2]
[394626082,1763795451212,-277.37410239,0.00016712,2]
[394626083,1763795451221,-500.0,0.00016712,2]
[394626084,1763795451231,-500.0,0.00016712,2]
[394626085,1763795451241,-400.0,0.00016712,2]
[394626086,1763795451251,-500.0,0.00016712,2]
[394626087,1763795451261,-500.0,0.00016712,2]
[394626088,1763795451271,-160.75715489,0.00016712,2]
[394626089,1763795451280,-500.0,0.00016712,2]
[394626090,1763795451290,-500.0,0.00016712,2]
[394626091,1763795451302,-500.0,0.00016712,2]
[394626092,1763795451312,-500.0,0.00016712,2]
[394626093,1763795451323,-500.0,0.00016712,2]
[394626094,1763795451333,-500.0,0.00016712,2]
[394626095,1763795451344,-500.0,0.00016712,2]
[394626096,1763795451355,-500.0,0.00016712,2]
[394626097,1763795451365,-500.0,0.00016712,2]
[394626098,1763795451376,-500.0,0.00016712,2]
[394626099,1763795451387,-500.0,0.00016712,2]
[394626100,1763795451396,-500.0,0.00016712,2]
[394626101,1763795451407,-929.65,0.00016712,2]
[394626102,1763795451417,-500.0,0.00016712,2]
[394626103,1763795451427,-500.0,0.00016712,2]
[394626104,1763795451436,-500.0,0.00016712,2]
[394626105,1763795451446,-500.0,0.00016712,2]
[394626106,1763795451459,-500.0,0.00016712,2]
[394626107,1763795451469,-1055.61,0.00016712,2]
[394626108,1763795451479,-500.0,0.00016712,2]
[394626109,1763795451488,-949.05,0.00016712,2]
[394626110,1763795451498,-500.0,0.00016712,2]
[394626111,1763795451508,-652.47,0.00016712,2]
[394626112,1763795451518,-853.84,0.00016712,2]
[394626113,1763795451528,-500.0,0.00016712,2]
[394626114,1763795451537,-500.0,0.00016712,2]
[394626115,1763795451547,-500.0,0.00016712,2]
[394626116,1763795451558,-931.55,0.00016712,2]
[394626117,1763795451567,-372.97140221,0.00016712,2]
[394626118,1763795451577,-1047.79,0.00016712,2]
[394626119,1763795451586,-690.99,0.00016712,2]
[394626120,1763795451596,-600.883235,0.00016712,2]
[394626121,1763795451605,-500.0,0.00016712,2]
[394626122,1763795451615,-500.0,0.00016712,2]
[394626123,1763795451624,-500.0,0.00016712,2]
[394626124,1763795451634,-621.83,0.00016712,2]
[394626125,1763795451644,-500.0,0.00016712,2]
[394626126,1763795451653,-500.0,0.00016712,2]
[394626127,1763795451662,-500.0,0.00016712,2]
[394626128,1763795451672,-500.0,0.00016712,2]
[394626129,1763795451682,-880.46,0.00016712,2]
[394626130,1763795451692,-500.0,0.00016712,2]
[394626131,1763795451703,-500.0,0.00016712,2]
[394626132,1763795451712,-500.0,0.00016712,2]
[394626133,1763795451722,-561.60553444,0.00016712,2]
[394626134,1763795451732,-500.0,0.00016712,2]
[394626135,1763795451742,-500.0,0.00016712,2]
[394626136,1763795451752,-442.30851916,0.00016712,2]
[394626137,1763795451762,-320.24464897,0.00016712,2]
[394626138,1763795451771,-500.0,0.00016712,2]
[394626139,1763795451782,-500.0,0.00016712,2]
[394626140,1763795451791,-500.0,0.00016712,2]
[394626141,1763795451802,-500.0,0.00016712,2]
[394626142,1763795451813,-500.0,0.00016712,2]
[394626143,1763795451823,-500.0,0.00016712,2]
[394626144,1763795451834,-500.0,0.00016712,2]
[394626145,1763795451844,-500.0,0.00016712,2]
[394626146,1763795451854,-500.0,0.00016712,2]
[394626147,1763795451864,-922.69,0.00016712,2]